bitfinex-derivatives/quotes_BTCF0:USTF0_20240830
["timestamp","ask_amount","ask_price","bid_price","bid_amount"]
[1725025876669,0.3608,59072.0,59053.0,0.01659091]
[1725025876670,0.3608,59067.0,59053.0,0.37739091]
[1725025876870,0.530109,59055.0,59053.0,9.1e-07]
[1725025877171,0.530109,59055.0,59026.0,0.3608]
[1725025877172,0.084679,59038.0,59008.0,0.3608]
[1725025877368,0.084703,59021.0,59015.0,0.0649]
[1725025877674,0.084703,59021.0,59019.0,0.00021955]
[1725025877977,0.3608,59024.0,59015.0,0.34149557]
[1725025878276,0.36105395,59030.0,59014.0,0.3608]
[1725025878482,0.3608,59022.0,59017.0,0.3608]
[1725025879477,0.00025395,59030.0,59022.0,0.0847]
[1725025879673,0.00025395,59030.0,59029.0,0.445491]
[1725025879861,0.00025395,59030.0,59029.0,0.3608]
[1725025880067,0.00025395,59030.0,59021.0,0.21168]
[1725025880261,0.00025395,59030.0,59025.0,0.3608]
[1725025880472,0.00025395,59030.0,59027.0,0.084693]
[1725025880776,0.00025395,59030.0,59026.0,0.3608]
[1725025880962,0.00025395,59030.0,59024.0,0.0818]
[1725025881164,0.00025395,59030.0,59027.0,0.3608]
[1725025881681,0.00025395,59030.0,59024.0,0.0818]
[1725025881871,0.3608,59026.0,59016.0,0.3608]
[1725025882466,0.00025395,59030.0,59023.0,0.3608]
[1725025882872,0.3608,59027.0,59016.0,0.3608]
[1725025883465,0.084704,59020.0,59013.0,0.0794]
[1725025883667,0.084709,59017.0,59012.0,0.075]
[1725025883869,0.3608,59013.0,59012.0,0.075]
[1725025884072,0.445504,59020.0,59012.0,0.075]
[1725025884281,0.3608,59015.0,59012.0,0.075]
[1725025884480,0.3608,59015.0,59011.0,0.01931818]
[1725025884481,0.3708,59015.0,59011.0,0.01931818]
[1725025884776,0.084715,59013.0,59011.0,0.01931818]
[1725025884974,0.094715,59013.0,59011.0,0.01931818]
[1725025885181,0.50836,59012.0,59011.0,0.01931818]
[1725025885475,0.00192001,59013.0,59011.0,0.38011818]
[1725025885687,0.00025417,59018.0,59011.0,0.38011818]
[1725025885873,0.3608,59012.0,59011.0,0.01931818]
[1725025886375,0.3608,59012.0,58981.0,0.3608]
[1725025886376,0.98916,59012.0,59000.0,0.3608]
[1725025886573,0.4808,59012.0,59000.0,0.3608]
[1725025886976,0.084746,58991.0,58988.0,0.3608]
[1725025887171,0.084746,58991.0,58981.0,0.5238]
[1725025887172,0.084758,58982.0,58981.0,0.36172]
[1725025887380,0.084758,58982.0,58976.0,0.3608]
[1725025887679,0.00025417,58985.0,58976.0,0.3608]
[1725025887872,0.02025417,58985.0,58976.0,0.3608]
[1725025888072,0.084766,58977.0,58969.0,0.0812]
[1725025888278,0.084766,58977.0,58969.0,0.0802]
[1725025888279,0.875571,58974.0,58969.0,0.0802]
[1725025888494,0.3608,58973.0,58939.0,0.36084]
[1725025888781,0.3608,58973.0,58944.0,0.3608]
[1725025888782,0.43,58952.0,58944.0,0.3608]
[1725025889176,0.43,58960.0,58945.0,0.3608]
[1725025889481,0.3608,58957.0,58945.0,0.3608]
[1725025889785,0.43,58960.0,58945.0,0.3608]
[1725025889976,0.43,58960.0,58950.0,0.3608]
[1725025890174,0.00025441,58966.0,58958.0,0.3608]
[1725025890476,0.00025441,58966.0,58965.0,0.3608]
[1725025890783,0.00025441,58966.0,58956.0,0.3608]
[1725025891088,0.3608,58991.0,58965.0,0.3608]
[1725025891288,0.43,58994.0,58974.0,0.3608]
[1725025891473,0.0651,59038.0,58981.0,0.3608]
[1725025891474,0.3608,58988.0,58981.0,0.3608]
[1725025891985,0.3608,58997.0,58987.0,0.3608]
[1725025892373,0.00025441,58998.0,58987.0,0.3608]
[1725025892573,0.00025441,58998.0,58997.0,0.3608]
[1725025893390,0.00025441,58998.0,58992.0,0.3608]
[1725025893587,0.00025441,58998.0,58997.0,0.3608]
[1725025893792,0.03025441,58998.0,58986.0,0.36105441]
[1725025893986,0.3608,58996.0,58986.0,0.00025441]
[1725025894187,0.3608,58996.0,58977.0,0.443]
[1725025894188,0.084751,58988.0,58977.0,0.443]
[1725025894698,0.3608,58990.0,58983.0,0.3608]
[1725025894879,0.3608,58997.0,58983.0,0.3608]
[1725025895091,0.3608,58988.0,58983.0,0.3608]
[1725025895289,0.44555,58988.0,58983.0,0.3608]
[1725025895482,0.08477,58974.0,58972.0,0.0777]
[1725025895678,0.3608,58976.0,58972.0,0.0777]
[1725025895889,0.00025441,58979.0,58973.0,0.084771]
[1725025896091,0.00025441,58979.0,58972.0,0.0777]
[1725025896389,0.00025441,58979.0,58977.0,0.3608]
[1725025897595,0.86948,58978.0,58972.0,0.0777]
[1725025897798,0.04025441,58979.0,58972.0,0.0777]
[1725025897799,0.00025441,58979.0,58977.0,0.3608]
[1725025898099,0.084735,58999.0,58978.0,0.50868]
[1725025898290,0.3608,59000.0,58988.0,0.3608]
[1725025898487,0.3608,59000.0,58990.0,0.084747]
[1725025898682,0.445527,59004.0,58990.0,0.084747]
[1725025898683,0.445527,59004.0,58995.0,0.3608]
[1725025898988,0.4208,59004.0,58995.0,0.3608]
[1725025899192,0.4208,59004.0,58994.0,0.00025441]
[1725025899193,0.08474,58995.0,58994.0,0.00025441]
[1725025899390,0.14474,58995.0,58994.0,0.00025441]
[1725025899586,1.01406,58995.0,58994.0,0.00025441]
[1725025900098,0.4208,58995.0,58994.0,0.00025441]
[1725025900281,0.06,58995.0,58994.0,0.00025441]
[1725025900593,0.084715,59013.0,58994.0,0.00025441]
[1725025900594,0.00025441,59005.0,58994.0,1.46957441]
[1725025900781,0.3608,59034.0,59007.0,0.084722]
[1725025900980,0.3608,59034.0,59025.0,0.3608]
[1725025901184,0.01,59034.0,59025.0,0.3608]
[1725025901391,0.3608,59046.0,59031.0,0.3608]
[1725025901594,0.084675,59041.0,59036.0,0.3608]
[1725025901788,0.00025419,59044.0,59037.0,0.445479]
[1725025901989,0.00025419,59044.0,59043.0,0.1608]
[1725025902184,0.00025419,59044.0,59033.0,0.00025419]
[1725025902185,1.48913419,59044.0,59033.0,0.00025419]
[1725025902389,0.806283,59035.0,59033.0,0.00025419]
[1725025902586,0.7216,59035.0,59033.0,0.00025419]
[1725025902793,0.3608,59042.0,59034.0,0.592883]
[1725025902984,0.3608,59042.0,59033.0,0.96105419]
[1725025902985,0.00025419,59044.0,59039.0,0.3608]
[1725025903393,0.37105419,59044.0,59033.0,0.00025419]
[1725025903691,0.3608,59038.0,59033.0,0.00025419]
[1725025903891,0.00025419,59044.0,59035.0,0.3608]
[1725025904096,0.00025419,59044.0,59043.0,0.3608]
[1725025904783,0.00025419,59044.0,59033.0,0.00025419]
[1725025904784,0.36105419,59044.0,59033.0,0.00025419]
[1725025905101,0.3608,59039.0,59033.0,0.00025419]
[1725025905797,0.3808,59039.0,59033.0,0.00025419]
[1725025905996,0.3608,59039.0,59033.0,0.00025419]
[1725025906383,0.3708,59039.0,59033.0,0.00025419]
[1725025906590,0.3608,59034.0,59033.0,0.00025419]
[1725025906901,1.35672333,59034.0,59033.0,0.00025419]
[1725025907191,0.24852333,59034.0,59033.0,0.00025419]
[1725025907396,0.084683,59035.0,59033.0,0.00025419]
[1725025907599,0.3608,59024.0,58981.0,0.3608]
[1725025907798,0.3608,59009.0,58991.0,0.3608]
[1725025907987,0.3608,59009.0,58993.0,0.3608]
[1725025907988,0.084737,58997.0,58993.0,0.3608]
[1725025908183,0.084737,58997.0,58982.0,0.0788]
[1725025908184,0.03,58997.0,58984.0,0.3608]
[1725025908388,0.03,58997.0,58986.0,0.084752]
[1725025908593,0.084739,58996.0,58992.0,0.3608]
[1725025908790,0.00025419,58997.0,58993.0,0.084742]
[1725025909093,0.00025419,58997.0,58993.0,0.3608]
[1725025909801,0.3608,59015.0,58994.0,0.50852]
[1725025909988,0.3608,59015.0,58992.0,0.081]
[1725025909989,0.3608,59018.0,59008.0,0.3608]
[1725025910296,0.084707,59018.0,59016.0,0.3608]
[1725025910596,0.00025419,59023.0,59016.0,0.3608]
[1725025910894,0.3608,59017.0,59011.0,0.00025419]
[1725025911091,0.3608,59012.0,59011.0,0.00025419]
[1725025911295,0.3808,59012.0,59011.0,1.9e-07]
[1725025912002,1.31916,59012.0,59011.0,1.9e-07]
[1725025912294,0.88916,59012.0,59011.0,1.9e-07]
[1725025912500,0.3808,59012.0,59011.0,1.9e-07]
[1725025912687,1.48916,59012.0,59011.0,1.9e-07]
[1725025912997,1.91916,59012.0,59011.0,1.9e-07]
[1725025913586,0.3808,59012.0,59011.0,1.9e-07]
[1725025913798,0.93,59020.0,59011.0,0.36080019]
[1725025913799,0.50192001,59020.0,59011.0,0.36080019]
[1725025913993,0.00025419,59023.0,59016.0,0.3608]
[1725025914188,0.00025419,59023.0,59011.0,0.36080019]
[1725025914189,0.00025419,59023.0,59020.0,0.3608]
[1725025914388,0.00025419,59023.0,59011.0,0.36080019]
[1725025914389,0.00025419,59023.0,59021.0,0.084701]
[1725025915192,0.00025419,59023.0,59022.0,0.0813]
[1725025915799,0.00025419,59023.0,59022.0,0.674281]
[1725025915994,0.00025419,59023.0,59022.0,1.274281]
[1725025916306,0.3608,59029.0,59025.0,0.084695]
[1725025916496,0.084685,59033.0,59028.0,0.3608]
[1725025916692,0.43,59054.0,59028.0,0.3608]
[1725025916693,0.3608,59049.0,59030.0,0.3608]
[1725025916891,0.3708,59049.0,59042.0,0.3608]
[1725025917101,0.084679,59038.0,59035.0,0.3608]
[1725025917305,0.084679,59038.0,59031.0,0.00025419]
[1725025917306,0.084687,59032.0,59031.0,0.00025419]
[1725025917490,0.445487,59032.0,59031.0,0.00025419]
[1725025918191,0.094687,59032.0,59031.0,0.00025419]
[1725025919193,0.3608,59041.0,59031.0,0.00025419]
[1725025919394,0.4708,59041.0,59034.0,0.3608]
[1725025919592,0.00025419,59042.0,59040.0,0.084675]
[1725025919811,0.00025419,59042.0,59039.0,0.3608]
[1725025920192,0.00025419,59042.0,59040.0,0.592795]
[1725025920394,0.00025419,59042.0,59041.0,0.592794]
[1725025920694,0.00025419,59042.0,59041.0,0.684674]
[1725025920895,0.00025419,59042.0,59041.0,1.192794]
[1725025921095,0.084628,59073.0,59041.0,1.192794]
[1725025921096,0.084628,59073.0,59041.0,1.10812]
[1725025921309,0.3608,59062.0,59051.0,0.3608]
[1725025921497,0.3608,59062.0,59042.0,0.21184]
[1725025921498,0.43,59054.0,59042.0,0.21184]
[1725025921698,0.084671,59043.0,59042.0,0.21184]
[1725025921908,0.084689,59030.0,59025.0,0.3608]
[1725025922096,0.4008,59043.0,59025.0,0.3608]
[1725025922097,0.00025397,59033.0,59026.0,0.50824]
[1725025922405,0.00025397,59033.0,59032.0,0.3608]
[1725025922600,0.3608,59043.0,59032.0,0.869]
[1725025922799,0.084665,59047.0,59039.0,0.084676]
[1725025923000,0.3608,59052.0,59037.0,0.3608]
[1725025923001,0.3608,59052.0,59045.0,0.3608]
[1725025923302,0.3608,59061.0,59045.0,0.3608]
[1725025923499,0.06,59061.0,59058.0,0.3608]
[1725025923715,0.00025397,59065.0,59058.0,0.3608]
[1725025923909,0.00025397,59065.0,59063.0,0.3608]
[1725025924410,0.00025397,59065.0,59064.0,0.50792]
[1725025924616,0.00025397,59065.0,59064.0,0.592561]
[1725025924824,0.43,59086.0,59064.0,0.592561]
[1725025924825,0.084609,59087.0,59064.0,1.10792]
[1725025925111,0.084609,59087.0,59071.0,0.3608]
[1725025925112,0.3608,59084.0,59071.0,0.3608]
[1725025925314,0.3608,59099.0,59088.0,0.084606]
[1725025925524,0.3608,59104.0,59097.0,0.084593]
[1725025925720,0.3608,59104.0,59098.0,0.0824]
[1725025925914,0.3608,59111.0,59098.0,0.0824]
[1725025925915,0.00025397,59106.0,59103.0,0.084584]
[1725025926117,0.15038461,59121.0,59105.0,0.3608]
[1725025926315,0.3608,59123.0,59116.0,0.3608]
[1725025926729,0.3608,59132.0,59116.0,0.86824]
[1725025927025,0.445361,59120.0,59107.0,0.3608]
[1725025927216,0.445361,59120.0,59108.0,0.00025375]
[1725025927217,0.00016724,59119.0,59108.0,0.00025375]
[1725025927719,0.00016724,59119.0,59118.0,0.3608]
[1725025928023,0.3608,59135.0,59121.0,0.084558]
[1725025928211,0.3608,59129.0,59122.0,0.21172]
[1725025928523,0.3608,59135.0,59123.0,0.3608]
[1725025928722,0.084541,59134.0,59123.0,0.3608]
[1725025928921,0.3608,59135.0,59129.0,0.3608]
[1725025929321,0.3608,59147.0,59134.0,0.3608]
[1725025929529,0.084524,59146.0,59135.0,0.00025375]
[1725025929821,0.3608,59137.0,59135.0,0.00025375]
[1725025930213,0.445324,59146.0,59135.0,0.00025375]
[1725025930418,0.3608,59152.0,59136.0,0.3608]
[1725025930824,0.06568513,59154.0,59141.0,0.3608]
[1725025931021,0.35848983,59161.0,59141.0,0.3608]
[1725025931222,0.084514,59153.0,59141.0,0.3608]
[1725025931423,0.084525,59145.0,59135.0,0.00025375]
[1725025931628,0.3608,59149.0,59140.0,0.3608]
[1725025931822,0.3608,59160.0,59140.0,0.3608]
[1725025932019,0.3608,59149.0,59135.0,0.00025375]
[1725025932228,0.084537,59137.0,59135.0,0.00025375]
[1725025932433,0.3608,59144.0,59135.0,0.00025375]
[1725025932634,0.084534,59139.0,59135.0,0.00025375]
[1725025932824,0.084537,59137.0,59135.0,0.00025375]
[1725025933533,0.3608,59136.0,59135.0,7.5e-07]
[1725025933730,0.90812,59136.0,59135.0,7.5e-07]
[1725025933923,1.26892,59136.0,59135.0,7.5e-07]
[1725025934125,1.86892,59136.0,59135.0,7.5e-07]
[1725025934427,0.4008,59136.0,59135.0,7.5e-07]
[1725025934931,0.3608,59136.0,59135.0,7.5e-07]
[1725025935134,0.000253,59141.0,59135.0,0.50732075]
[1725025935337,0.000253,59141.0,59136.0,0.50728]
[1725025935637,0.000253,59141.0,59140.0,0.3608]
[1725025935827,0.3608,59148.0,59143.0,0.084527]
[1725025936028,0.084509,59156.0,59147.0,0.445322]
[1725025936332,0.11559242,59151.0,59148.0,0.08452]
[1725025936721,0.11559242,59151.0,59147.0,0.36168]
[1725025936936,0.084518,59150.0,59147.0,0.3608]
[1725025937133,0.084518,59150.0,59136.0,0.43]
[1725025937134,0.03,59150.0,59136.0,0.43]
[1725025937429,0.03,59150.0,59142.0,0.3608]
[1725025938032,0.084528,59143.0,59135.0,0.44533975]
[1725025938231,0.3608,59154.0,59136.0,0.50728]
[1725025938430,0.4808,59154.0,59140.0,0.3608]
[1725025938631,0.084519,59149.0,59140.0,0.445331]
[1725025938835,0.04,59149.0,59141.0,0.0839]
[1725025939148,0.4008,59149.0,59141.0,0.0839]
[1725025939433,0.169064,59140.0,59139.0,0.00025375]
[1725025939641,0.169064,59140.0,59139.0,7.5e-07]
[1725025939642,0.565332,59140.0,59139.0,7.5e-07]
[1725025940033,0.4808,59140.0,59139.0,7.5e-07]
[1725025940235,0.12,59140.0,59139.0,0.08453375]
[1725025940435,0.3608,59151.0,59139.0,1.10728075]
[1725025940638,0.11,59151.0,59149.0,0.084519]
[1725025940940,0.3608,59150.0,59140.0,0.4455]
[1725025941134,0.12,59150.0,59146.0,0.3608]
[1725025941329,0.02,59150.0,59145.0,0.084524]
[1725025941635,0.01,59150.0,59141.0,0.084531]
[1725025941838,0.01,59150.0,59140.0,0.4455]
[1725025942036,0.01,59150.0,59145.0,0.3608]
[1725025942536,0.01,59150.0,59145.0,0.868]
[1725025943039,0.01,59150.0,59149.0,0.084519]
[1725025943238,0.000253,59151.0,59145.0,0.36172]
[1725025943441,0.020253,59151.0,59150.0,0.3608]
[1725025943939,0.3608,59176.0,59150.0,1.468]
[1725025944141,0.11,59176.0,59173.0,0.3608]
[1725025944444,0.3608,59184.0,59175.0,0.3608]
[1725025944635,0.4708,59184.0,59175.0,0.3608]
[1725025944839,0.084457,59193.0,59183.0,0.08447]
[1725025945141,0.3608,59188.0,59182.0,0.00025353]
[1725025945332,0.3608,59183.0,59182.0,0.00025353]
[1725025945533,0.05,59183.0,59182.0,0.00025353]
[1725025945733,0.08446,59191.0,59182.0,0.00025353]
[1725025946039,0.07,59191.0,59183.0,0.08447]
[1725025946237,0.07,59191.0,59182.0,0.36105353]
[1725025946238,0.07,59191.0,59189.0,0.3608]
[1725025946441,0.07,59191.0,59182.0,0.00025353]
[1725025946442,0.3608,59190.0,59182.0,0.00025353]
[1725025946639,0.3608,59183.0,59182.0,0.00025353]
[1725025947838,0.084466,59186.0,59182.0,0.00025353]
[1725025948140,0.3608,59190.0,59182.0,0.00025353]
[1725025948340,0.168938,59184.0,59182.0,0.00025353]
[1725025948544,0.204469,59184.0,59182.0,0.00025353]
[1725025948746,0.288939,59184.0,59182.0,0.00025353]
[1725025949147,0.288939,59184.0,59182.0,5.3e-07]
[1725025949346,0.50692,59183.0,59182.0,5.3e-07]
[1725025949540,0.50692,59183.0,59127.0,0.08455]
[1725025949541,0.084504,59160.0,59142.0,0.446]
[1725025949758,0.084518,59150.0,59145.0,0.084525]
[1725025949937,0.3608,59146.0,59134.0,0.3608]
[1725025950137,0.3608,59135.0,59122.0,0.27729635]
[1725025950353,0.084542,59133.0,59122.0,0.27729635]
[1725025950647,0.0002528,59133.0,59128.0,0.3608]
[1725025950844,0.3608,59153.0,59147.0,0.084522]
[1725025951054,0.3608,59168.0,59149.0,0.3608]
[1725025951236,0.3608,59168.0,59158.0,0.3608]
[1725025951237,0.104493,59168.0,59158.0,0.3608]
[1725025951438,0.02,59168.0,59164.0,0.3608]
[1725025951639,0.084484,59174.0,59164.0,0.3608]
[1725025951846,0.02,59174.0,59164.0,0.3608]
[1725025952046,0.02,59174.0,59163.0,0.00025353]
[1725025952047,0.3608,59166.0,59163.0,0.00025353]
[1725025952350,0.084498,59164.0,59163.0,0.00025353]
[1725025952651,0.084497,59165.0,59163.0,0.36105353]
[1725025952838,0.194497,59165.0,59163.0,0.00025353]
[1725025954347,0.11,59165.0,59163.0,0.00025353]
[1725025954751,0.11,59165.0,59164.0,0.3608]
[1725025955053,0.08447,59184.0,59176.0,0.08448]
[1725025955347,0.086497,59193.0,59179.0,0.3608]
[1725025955348,0.084459,59191.0,59179.0,0.3608]
[1725025955548,0.1,59191.0,59183.0,0.08447]
[1725025956145,0.3608,59190.0,59179.0,0.36105353]
[1725025956445,0.084471,59183.0,59179.0,0.36105353]
[1725025956647,0.194471,59183.0,59179.0,0.36105353]
[1725025956842,0.084474,59181.0,59179.0,0.36105353]
[1725025957043,0.3608,59180.0,59179.0,0.00025353]
[1725025957252,0.184475,59180.0,59179.0,0.00025353]
[1725025957442,0.691395,59180.0,59179.0,0.00025353]
[1725025957641,0.184475,59180.0,59179.0,0.00025353]
[1725025957841,0.184475,59180.0,59179.0,0.44552953]
[1725025957842,0.1,59180.0,59179.0,0.44552953]
[1725025958041,0.084459,59192.0,59187.0,0.084465]
[1725025958249,0.57526,59191.0,59179.0,0.36105353]
[1725025958452,0.4908,59191.0,59188.0,0.084463]
[1725025958754,0.4908,59191.0,59189.0,0.084462]
[1725025959253,0.13,59191.0,59190.0,0.3608]
[1725025959945,0.214459,59191.0,59190.0,0.3608]
[1725025960249,0.55272001,59197.0,59190.0,0.3608]
[1725025960250,0.36272001,59197.0,59190.0,0.3608]
[1725025960444,0.4608,59197.0,59190.0,0.3608]
[1725025960649,0.4608,59197.0,59195.0,0.084453]
[1725025961040,0.4608,59197.0,59196.0,0.084452]
[1725025961041,0.1,59197.0,59196.0,0.084452]
[1725025961247,0.084434,59209.0,59196.0,0.3608]
[1725025961447,0.084449,59198.0,59197.0,0.00025353]
[1725025961650,0.288898,59198.0,59197.0,0.00025353]
[1725025961855,0.795658,59198.0,59197.0,0.00025353]
[1725025962149,0.084468,59185.0,59184.0,0.3608]
[1725025962356,0.124468,59185.0,59184.0,0.3608]
[1725025962557,0.208936,59185.0,59184.0,0.3608]
[1725025962749,0.208936,59185.0,59174.0,0.4476]
[1725025962750,0.084476,59180.0,59174.0,0.4476]
[1725025962944,0.03,59180.0,59174.0,0.4476]
[1725025963249,0.00025353,59183.0,59182.0,0.084472]
[1725025963752,0.3608,59190.0,59188.0,0.084463]
[1725025963948,0.3608,59190.0,59174.0,0.0868]
[1725025963949,0.084464,59188.0,59174.0,0.0868]
[1725025964142,0.084472,59182.0,59174.0,0.0868]
[1725025964346,0.084482,59175.0,59174.0,0.0868]
[1725025964543,0.084463,59189.0,59174.0,0.0868]
[1725025964745,0.084463,59189.0,59173.0,0.445284]
[1725025964746,0.084469,59184.0,59176.0,0.00025353]
[1725025964959,0.084479,59177.0,59176.0,0.00025353]
[1725025965147,0.194479,59177.0,59176.0,0.00025353]
[1725025965353,0.11,59177.0,59176.0,0.08473453]
[1725025965955,0.194479,59177.0,59176.0,0.00025353]
[1725025966355,0.11,59177.0,59176.0,0.95249453]
[1725025966551,0.3608,59196.0,59182.0,0.084471]
[1725025966854,0.3608,59196.0,59179.0,0.084475]
[1725025966855,0.084472,59183.0,59179.0,0.084475]
[1725025967058,0.11,59183.0,59179.0,0.084475]
[1725025967257,0.11,59183.0,59176.0,0.36105353]
[1725025967454,0.084472,59182.0,59176.0,0.36105353]
[1725025967655,0.11,59182.0,59177.0,0.084478]
[1725025967962,0.11,59182.0,59181.0,0.3608]
[1725025968552,0.194472,59182.0,59181.0,0.3608]
[1725025968959,0.11,59182.0,59181.0,0.952193]
[1725025969150,0.3608,59199.0,59183.0,0.08447]
[1725025969351,0.084455,59195.0,59187.0,0.3608]
[1725025969658,0.12,59195.0,59194.0,0.3608]
[1725025969955,0.12,59195.0,59194.0,0.084455]
[1725025970856,0.08207841,59212.0,59194.0,1.1068]
[1725025970857,0.08444,59205.0,59194.0,1.1068]
[1725025971060,0.18444,59205.0,59204.0,0.3608]
[1725025971665,0.25077862,59205.0,59194.0,0.084454]
[1725025971860,0.08445,59198.0,59192.0,0.445257]
[1725025972156,0.084451,59197.0,59193.0,0.084456]
[1725025972454,0.02,59197.0,59193.0,0.084456]
[1725025972760,0.02,59197.0,59194.0,0.084454]
[1725025972954,0.02,59197.0,59196.0,0.084452]
[1725025973149,0.02,59197.0,59196.0,0.445252]
[1725025973652,0.08444,59205.0,59196.0,0.3608]
[1725025973856,0.20444,59205.0,59203.0,0.3608]
[1725025974161,0.084441,59204.0,59203.0,0.3608]
[1725025974351,0.084451,59197.0,59196.0,0.3608]
[1725025974552,0.214451,59197.0,59196.0,0.3608]
[1725025974753,0.084461,59190.0,59189.0,0.00025353]
[1725025975054,0.12,59190.0,59189.0,0.00025353]
[1725025975255,0.204461,59190.0,59189.0,0.00025353]
[1725025976056,0.288922,59190.0,59189.0,0.00025353]
[1725025976251,0.288922,59190.0,59174.0,0.4503]
[1725025976252,0.084482,59176.0,59174.0,0.4503]
[1725025976556,0.12,59176.0,59175.0,0.675924]
[1725025976751,0.084459,59192.0,59175.0,0.50696]
[1725025976957,0.11,59192.0,59191.0,0.084459]
[1725025977159,0.194458,59192.0,59188.0,0.3608]
[1725025977551,0.11,59192.0,59188.0,0.3608]
[1725025977751,0.084461,59190.0,59188.0,0.3608]
[1725025978051,0.07,59190.0,59189.0,0.084462]
[1725025978750,0.07,59190.0,59189.0,0.591302]
[1725025979260,0.00025353,59196.0,59195.0,0.084453]
[1725025979454,0.084435,59208.0,59195.0,0.3608]
[1725025979650,0.11,59208.0,59202.0,0.445243]
[1725025979855,0.11,59208.0,59204.0,0.08444]
[1725025980058,0.11,59208.0,59205.0,0.084439]
[1725025980264,0.11,59208.0,59202.0,0.3608]
[1725025980764,0.084442,59203.0,59199.0,0.00025353]
[1725025981064,0.12,59203.0,59199.0,0.00025353]
[1725025981251,0.12,59203.0,59200.0,0.084445]
[1725025981455,0.12,59203.0,59199.0,0.00025353]
[1725025981654,0.12,59203.0,59202.0,0.445243]
[1725025982159,0.08443,59212.0,59202.0,1.46752]
[1725025982365,0.12,59212.0,59211.0,0.084431]
[1725025982957,0.06653002,59225.0,59211.0,1.10664]
[1725025983160,0.11,59225.0,59223.0,0.084413]
[1725025983358,0.11,59225.0,59219.0,0.3608]
[1725025983854,0.194411,59225.0,59219.0,0.3608]
[1725025984167,0.084418,59220.0,59219.0,0.3608]
[1725025984364,0.11,59225.0,59219.0,0.3608]
[1725025984365,0.084406,59228.0,59223.0,0.084413]
[1725025984664,0.084414,59223.0,59219.0,0.3608]
[1725025984965,0.084418,59220.0,59219.0,0.3608]
[1725025985172,0.194418,59220.0,59219.0,0.3608]
[1725025985558,0.11,59220.0,59219.0,0.3608]
[1725025986173,0.20981416,59220.0,59219.0,0.3608]
[1725025986472,0.11,59220.0,59219.0,0.3608]
[1725025986869,0.20976563,59220.0,59219.0,0.445219]
[1725025987073,0.11,59220.0,59219.0,0.445219]
[1725025987663,0.194418,59220.0,59219.0,0.3608]
[1725025988170,0.20970854,59220.0,59219.0,0.445219]
[1725025988967,0.11,59220.0,59219.0,0.445219]
[1725025990165,0.09968335,59222.0,59219.0,0.445219]
[1725025990166,0.08305834,59222.0,59219.0,1.4674]
[1725025990367,0.21743761,59245.0,59220.0,0.173018]
[1725025990368,0.08305834,59221.0,59220.0,0.173018]
[1725025990566,3e-07,59225.0,59220.0,1.31676]
[1725025990784,0.09968335,59237.0,59221.0,0.0904]
[1725025991067,0.084395,59236.0,59235.0,0.3608]
[1725025991269,0.27879,59236.0,59235.0,0.3608]
[1725025991772,0.37837182,59236.0,59235.0,0.3608]
[1725025991972,0.4708,59236.0,59224.0,0.3608]
[1725025992182,0.168824,59224.0,59223.0,0.00025332]
[1725025992362,0.204412,59224.0,59223.0,0.00025332]
[1725025992562,0.12,59224.0,59223.0,0.08466632]
[1725025993365,0.12,59224.0,59223.0,0.44546632]
[1725025995267,0.12,59224.0,59223.0,0.36105332]
[1725025995467,0.204412,59224.0,59223.0,0.36105332]
[1725025995666,0.204412,59224.0,59223.0,0.59957332]
[1725025996576,0.12,59224.0,59223.0,0.68398632]
[1725025996872,0.204412,59224.0,59223.0,0.59957332]
[1725025997065,0.084432,59210.0,59209.0,0.3608]
[1725025997266,0.134432,59210.0,59209.0,0.3608]
[1725025997475,0.218864,59210.0,59209.0,0.3608]
[1725025997673,0.05,59210.0,59203.0,0.3608]
[1725025997868,0.084441,59204.0,59203.0,0.3608]
[1725025998063,0.04,59204.0,59203.0,0.445242]
[1725025998474,0.0002526,59209.0,59208.0,0.084435]
[1725025998781,0.1102526,59209.0,59208.0,0.445235]
[1725025998975,0.0002526,59209.0,59208.0,1.551915]
[1725025999176,0.3608,59222.0,59208.0,1.46748]
[1725025999476,0.515215,59222.0,59220.0,0.084418]
[1725025999674,0.4308,59222.0,59208.0,0.3608]
[1725025999874,0.084422,59218.0,59208.0,0.3608]
[1725026000080,0.07,59218.0,59216.0,0.3608]
[1725026000275,0.07,59218.0,59217.0,0.084422]
[1725026000976,0.084422,59217.0,59216.0,0.3608]
[1725026001181,0.194422,59217.0,59216.0,0.3608]
[1725026002483,0.11,59217.0,59216.0,0.951823]
[1725026002682,0.11,59217.0,59216.0,1.551823]
[1725026002879,0.0886,59243.0,59224.0,0.084411]
[1725026002880,0.09956662,59230.0,59224.0,0.084411]
[1725026003181,0.09956662,59230.0,59229.0,0.3608]
[1725026003182,0.18956662,59230.0,59229.0,0.3608]
[1725026003380,0.09,59230.0,59229.0,0.445205]
[1725026003580,0.09977412,59238.0,59229.0,1.46732]
[1725026003785,0.09977412,59244.0,59242.0,0.084386]
[1725026003985,0.11,59244.0,59242.0,0.445186]
[1725026004178,0.11,59244.0,59243.0,0.084385]
[1725026004481,0.25977412,59250.0,59242.0,0.59932]
[1725026004482,0.09977412,59251.0,59242.0,0.59932]
[1725026004676,0.084384,59244.0,59242.0,0.59932]
[1725026004873,0.084368,59255.0,59242.0,0.59932]
[1725026004874,0.10977412,59250.0,59242.0,0.59932]
[1725026005187,0.10977412,59250.0,59249.0,0.445176]
[1725026005188,0.1,59250.0,59249.0,0.445176]
[1725026005483,0.084359,59261.0,59252.0,0.084372]
[1725026005688,0.084362,59259.0,59258.0,0.3608]
[1725026005870,0.114362,59259.0,59258.0,0.3608]
[1725026006389,0.03,59259.0,59258.0,0.3608]
[1725026006874,0.01,59259.0,59258.0,0.3608]